[Event "ONJK U25"]
[Site "Enschede, Netherlands"]
[Date "2022.08.13"]
[Round "7.3"]
[White "Nijdam, Brian"]
[Black "Van Roon, Sjoerd"]
[Result "0-1"]
[TimeControl "90min + 30sec/move"]
[WhiteElo "1749"]
[BlackElo "2310"]

1. d4 {[%clk 01:30:37]} {[%emt 00:00:22]} d5 {[%clk 01:30:38]} {[%emt
00:00:23]} 2. Nc3 {[%clk 01:31:00]} {[%emt 00:00:06]} Nf6 {[%clk 01:30:51]}
{[%emt 00:00:17]} 3. Bf4 {[%clk 01:31:25]} {[%emt 00:00:05]} a6 {[%clk
01:31:16]} {[%emt 00:00:05]} 4. e3 {[%clk 01:29:50]} {[%emt 00:02:05]} Bf5
{[%clk 01:31:21]} {[%emt 00:00:26]} 5. f3 {[%clk 01:28:48]} {[%emt 00:01:31]}
Bg6 {[%clk 01:29:17]} {[%emt 00:02:34]} 6. g4 {[%clk 01:28:35]} {[%emt
00:00:43]} e6 {[%clk 01:29:04]} {[%emt 00:00:43]} 7. h4 {[%clk 01:28:55]}
{[%emt 00:00:08]} h6 {[%clk 01:28:52]} {[%emt 00:00:43]} 8. Bd3 {[%clk
01:28:36]} {[%emt 00:00:48]} Bxd3 {[%clk 01:28:57]} {[%emt 00:00:27]} 9. cxd3
{[%clk 01:28:14]} {[%emt 00:00:51]} c5 {[%clk 01:18:16]} {[%emt 00:11:11]} 10.
dxc5 {[%clk 01:27:22]} {[%emt 00:01:21]} Bxc5 {[%clk 01:18:41]} {[%emt
00:00:06]} 11. d4 {[%clk 01:27:41]} {[%emt 00:00:11]} Bd6 {[%clk 01:18:59]}
{[%emt 00:00:12]} 12. Nge2 {[%clk 01:26:57]} {[%emt 00:01:14]} Nc6 {[%clk
01:19:14]} {[%emt 00:00:17]} 13. Kf2 {[%clk 01:17:20]} {[%emt 00:10:06]} b5
{[%clk 01:16:59]} {[%emt 00:02:45]} 14. Rc1 {[%clk 01:15:19]} {[%emt 00:02:31]}
Rc8 {[%clk 01:17:12]} {[%emt 00:00:16]} 15. Bxd6 {[%clk 01:09:06]} {[%emt
00:06:44]} Qxd6 {[%clk 01:17:34]} {[%emt 00:00:08]} 16. Nf4 {[%clk 01:08:53]}
{[%emt 00:00:42]} Ne7 {[%clk 01:09:00]} {[%emt 00:09:05]} 17. g5 {[%clk
01:03:17]} {[%emt 00:06:06]} Nd7 {[%clk 01:08:21]} {[%emt 00:01:09]} 18. Qg1
{[%clk 00:53:12]} {[%emt 00:10:35]} h5 {[%clk 01:06:06]} {[%emt 00:02:45]} 19.
g6 {[%clk 00:44:57]} {[%emt 00:08:44]} f6 {[%clk 01:06:25]} {[%emt 00:00:12]}
20. Qg2 {[%clk 00:38:50]} {[%emt 00:06:36]} Rh6 {[%clk 01:05:13]} {[%emt
00:01:43]} 21. Qh3 {[%clk 00:33:02]} {[%emt 00:06:18]} Nf8 {[%clk 01:03:17]}
{[%emt 00:02:26]} 22. Nfxd5 {[%clk 00:19:47]} {[%emt 00:13:45]} exd5 {[%clk
00:59:47]} {[%emt 00:04:00]} 23. Ne4 {[%clk 00:13:10]} {[%emt 00:07:07]} Qd7
{[%clk 00:58:45]} {[%emt 00:01:31]} 24. Rxc8+ {[%clk 00:10:29]} {[%emt
00:03:11]} Nxc8 {[%clk 00:59:05]} {[%emt 00:00:10]} 25. Nxf6+ {[%clk 00:09:08]}
{[%emt 00:01:52]} gxf6 {[%clk 00:59:29]} {[%emt 00:00:06]} 26. g7 {[%clk
00:08:31]} {[%emt 00:01:06]} Qxh3 {[%clk 00:58:54]} {[%emt 00:01:06]} 27. Rxh3
{[%clk 00:08:34]} {[%emt 00:00:25]} Ne7 {[%clk 00:58:57]} {[%emt 00:00:28]} 28.
gxf8=R+ {[%clk 00:07:57]} {[%emt 00:01:08]} Kxf8 {[%clk 00:59:21]} {[%emt
00:00:06]} 29. e4 {[%clk 00:08:01]} {[%emt 00:00:26]} Kf7 {[%clk 00:59:04]}
{[%emt 00:00:48]} 30. Rh1 {[%clk 00:08:12]} {[%emt 00:00:18]} Rh8 {[%clk
00:59:17]} {[%emt 00:00:16]} 31. Ke3 {[%clk 00:08:07]} {[%emt 00:00:35]} Rc8
{[%clk 00:59:17]} {[%emt 00:00:30]} 32. Kd3 {[%clk 00:08:25]} {[%emt 00:00:10]}
b4 {[%clk 00:59:10]} {[%emt 00:00:39]} 33. Re1 {[%clk 00:08:21]} {[%emt
00:00:33]} a5 {[%clk 00:58:15]} {[%emt 00:01:26]} 34. Re2 {[%clk 00:07:23]}
{[%emt 00:01:27]} a4 {[%clk 00:57:19]} {[%emt 00:01:27]} 35. a3 {[%clk
00:06:29]} {[%emt 00:01:24]} b3 {[%clk 00:57:43]} {[%emt 00:00:05]} 36. Rg2
{[%clk 00:06:30]} {[%emt 00:00:29]} Ng6 {[%clk 00:57:50]} {[%emt 00:00:23]} 37.
Rh2 {[%clk 00:06:50]} {[%emt 00:00:10]} Nf4+ {[%clk 00:57:55]} {[%emt
00:00:24]} 38. Ke3 {[%clk 00:07:10]} {[%emt 00:00:10]} Rc2 {[%clk 00:56:56]}
{[%emt 00:01:30]} 39. Rd2 {[%clk 00:06:14]} {[%emt 00:01:24]} Ng2+ {[%clk
00:57:12]} {[%emt 00:00:15]} 0-1

[Event "ONJK U25"]
[Site "Enschede, Netherlands"]
[Date "2022.08.13"]
[Round "7.4"]
[White "Van Iersel, Yorn"]
[Black "Van Randtwijk, Mick"]
[Result "0-1"]
[TimeControl "90min + 30sec/move"]
[WhiteElo "1419"]
[BlackElo "2057"]

1. e4 {[%clk 01:30:58]} {[%emt 00:00:01]} c5 {[%clk 01:30:31]} {[%emt
00:00:29]} 2. Nf3 {[%clk 01:31:16]} {[%emt 00:00:13]} d6 {[%clk 01:30:41]}
{[%emt 00:00:19]} 3. d4 {[%clk 01:31:37]} {[%emt 00:00:09]} cxd4 {[%clk
01:30:41]} {[%emt 00:00:30]} 4. Nxd4 {[%clk 01:31:59]} {[%emt 00:00:08]} Nf6
{[%clk 01:30:48]} {[%emt 00:00:22]} 5. Nc3 {[%clk 01:32:17]} {[%emt 00:00:13]}
a6 {[%clk 01:31:02]} {[%emt 00:00:15]} 6. Be3 {[%clk 01:32:07]} {[%emt
00:00:40]} e5 {[%clk 01:30:23]} {[%emt 00:01:10]} 7. Nf3 {[%clk 01:30:46]}
{[%emt 00:01:51]} Be7 {[%clk 01:30:00]} {[%emt 00:00:53]} 8. Qd2 {[%clk
01:28:57]} {[%emt 00:02:19]} O-O {[%clk 01:28:13]} {[%emt 00:02:17]} 9. O-O-O
{[%clk 01:29:16]} {[%emt 00:00:10]} Qc7 {[%clk 01:26:58]} {[%emt 00:01:45]} 10.
Bg5 {[%clk 01:26:34]} {[%emt 00:03:12]} Nbd7 {[%clk 01:26:16]} {[%emt
00:01:12]} 11. Nh4 {[%clk 01:22:14]} {[%emt 00:04:51]} g6 {[%clk 01:20:02]}
{[%emt 00:06:43]} 12. Bh6 {[%clk 01:21:56]} {[%emt 00:00:48]} Rd8 {[%clk
01:19:12]} {[%emt 00:01:20]} 13. Nf5 {[%clk 01:21:10]} {[%emt 00:01:17]} Bf8
{[%clk 01:17:23]} {[%emt 00:02:20]} 14. Bxf8 {[%clk 01:13:58]} {[%emt
00:07:42]} Nxf8 {[%clk 01:16:05]} {[%emt 00:01:48]} 15. g4 {[%clk 01:06:29]}
{[%emt 00:07:59]} Bxf5 {[%clk 00:58:42]} {[%emt 00:17:53]} 16. gxf5 {[%clk
01:05:54]} {[%emt 00:01:05]} Rac8 {[%clk 00:58:26]} {[%emt 00:00:46]} 17. Kb1
{[%clk 01:00:36]} {[%emt 00:05:48]} d5 {[%clk 00:54:21]} {[%emt 00:04:35]} 18.
exd5 {[%clk 00:54:13]} {[%emt 00:06:53]} Nxd5 {[%clk 00:54:38]} {[%emt
00:00:12]} 19. Nxd5 {[%clk 00:53:49]} {[%emt 00:00:54]} Rxd5 {[%clk 00:55:04]}
{[%emt 00:00:04]} 20. Qc1 {[%clk 00:54:07]} {[%emt 00:00:12]} Rxd1 {[%clk
00:51:30]} {[%emt 00:04:04]} 21. Qxd1 {[%clk 00:54:28]} {[%emt 00:00:09]} gxf5
{[%clk 00:51:39]} {[%emt 00:00:21]} 22. Bh3 {[%clk 00:54:10]} {[%emt 00:00:48]}
Rd8 {[%clk 00:50:40]} {[%emt 00:01:29]} 23. Qh5 {[%clk 00:52:18]} {[%emt
00:02:21]} f4 {[%clk 00:48:46]} {[%emt 00:02:24]} 24. Bf5 {[%clk 00:49:30]}
{[%emt 00:03:18]} Ng6 {[%clk 00:47:59]} {[%emt 00:01:18]} 25. Rg1 {[%clk
00:49:05]} {[%emt 00:00:54]} Qe7 {[%clk 00:41:08]} {[%emt 00:07:21]} 26. Be4
{[%clk 00:44:41]} {[%emt 00:04:55]} Rd4 {[%clk 00:39:14]} {[%emt 00:02:24]} 27.
Qe2 {[%clk 00:42:03]} {[%emt 00:03:07]} Qd7 {[%clk 00:34:09]} {[%emt 00:05:35]}
28. a3 {[%clk 00:38:02]} {[%emt 00:04:32]} f5 {[%clk 00:30:47]} {[%emt
00:03:52]} 29. Bd3 {[%clk 00:37:50]} {[%emt 00:00:42]} e4 {[%clk 00:30:58]}
{[%emt 00:00:19]} 30. Bc4+ {[%clk 00:38:15]} {[%emt 00:00:05]} Kg7 {[%clk
00:29:46]} {[%emt 00:01:42]} 31. Bb3 {[%clk 00:36:59]} {[%emt 00:01:46]} b5
{[%clk 00:27:26]} {[%emt 00:02:50]} 32. Kc1 {[%clk 00:36:36]} {[%emt 00:00:53]}
Qe7 {[%clk 00:25:27]} {[%emt 00:02:28]} 33. Qh5 {[%clk 00:34:57]} {[%emt
00:02:08]} e3 {[%clk 00:24:50]} {[%emt 00:01:07]} 34. Qe2 {[%clk 00:33:56]}
{[%emt 00:01:31]} Rd2 {[%clk 00:24:27]} {[%emt 00:00:52]} 35. Qe1 {[%clk
00:33:50]} {[%emt 00:00:37]} Rxf2 {[%clk 00:23:42]} {[%emt 00:01:15]} 36. Qc3+
{[%clk 00:33:46]} {[%emt 00:00:34]} Kh6 {[%clk 00:21:50]} {[%emt 00:02:22]} 37.
Qd4 {[%clk 00:30:22]} {[%emt 00:03:54]} Qg5 {[%clk 00:20:11]} {[%emt 00:02:08]}
38. Rxg5 {[%clk 00:29:40]} {[%emt 00:01:12]} Rf1+ {[%clk 00:20:34]} {[%emt
00:00:07]} 39. Qd1 {[%clk 00:30:05]} {[%emt 00:00:05]} e2 {[%clk 00:19:51]}
{[%emt 00:01:12]} 40. Qe1 {[%clk 00:30:04]} {[%emt 00:00:32]} Rxe1+ {[%clk
00:18:16]} {[%emt 00:02:06]} 41. Kd2 {[%clk 00:30:24]} {[%emt 00:00:10]} Kxg5
{[%clk 00:18:40]} {[%emt 00:00:06]} 42. Kxe1 {[%clk 00:30:39]} {[%emt
00:00:15]} f3 {[%clk 00:19:06]} {[%emt 00:00:04]} 43. Bd5 {[%clk 00:29:30]}
{[%emt 00:01:40]} Nh4 {[%clk 00:19:14]} {[%emt 00:00:22]} 44. Bxf3 {[%clk
00:29:22]} {[%emt 00:00:38]} Nxf3+ {[%clk 00:19:36]} {[%emt 00:00:08]} 0-1

[Event "ONJK U25"]
[Site "Enschede, Netherlands"]
[Date "2022.08.13"]
[Round "7.5"]
[White "Gesthuizen, Ward"]
[Black "Kruimer, Matthias"]
[Result "0-1"]
[TimeControl "90min + 30sec/move"]
[WhiteElo "1600"]
[BlackElo "1766"]

1. d4 {[%clk 01:30:57]} {[%emt 00:00:03]} Nf6 {[%clk 01:30:54]} {[%emt
00:00:06]} 2. c4 {[%clk 01:31:22]} {[%emt 00:00:05]} g6 {[%clk 01:31:18]}
{[%emt 00:00:05]} 3. Nc3 {[%clk 01:31:39]} {[%emt 00:00:14]} Bg7 {[%clk
01:31:44]} {[%emt 00:00:04]} 4. e4 {[%clk 01:32:02]} {[%emt 00:00:07]} d6
{[%clk 01:32:07]} {[%emt 00:00:06]} 5. Nf3 {[%clk 01:31:31]} {[%emt 00:01:01]}
O-O {[%clk 01:32:30]} {[%emt 00:00:08]} 6. Bg5 {[%clk 01:31:23]} {[%emt
00:00:38]} h6 {[%clk 01:32:52]} {[%emt 00:00:08]} 7. Be3 {[%clk 01:30:43]}
{[%emt 00:01:10]} Ng4 {[%clk 01:31:37]} {[%emt 00:01:44]} 8. Bf4 {[%clk
01:27:20]} {[%emt 00:03:53]} f5 {[%clk 01:19:06]} {[%emt 00:13:01]} 9. Bd2
{[%clk 01:17:54]} {[%emt 00:09:57]} e5 {[%clk 01:15:54]} {[%emt 00:03:42]} 10.
d5 {[%clk 01:15:05]} {[%emt 00:03:20]} a5 {[%clk 01:14:08]} {[%emt 00:02:15]}
11. g3 {[%clk 01:09:59]} {[%emt 00:05:36]} Na6 {[%clk 01:05:42]} {[%emt
00:08:57]} 12. h3 {[%clk 00:58:02]} {[%emt 00:12:26]} fxe4 {[%clk 01:00:42]}
{[%emt 00:05:30]} 13. Nxe4 {[%clk 00:55:32]} {[%emt 00:03:00]} Nf6 {[%clk
00:56:32]} {[%emt 00:04:41]} 14. Nc3 {[%clk 00:53:04]} {[%emt 00:02:57]} Nc5
{[%clk 00:55:09]} {[%emt 00:01:52]} 15. g4 {[%clk 00:43:10]} {[%emt 00:10:24]}
Nfe4 {[%clk 00:46:38]} {[%emt 00:09:01]} 16. Nxe4 {[%clk 00:37:52]} {[%emt
00:05:49]} Nxe4 {[%clk 00:46:33]} {[%emt 00:00:35]} 17. Be3 {[%clk 00:36:13]}
{[%emt 00:02:08]} Qf6 {[%clk 00:45:30]} {[%emt 00:01:33]} 18. Bg2 {[%clk
00:34:24]} {[%emt 00:02:19]} Nxf2 {[%clk 00:34:34]} {[%emt 00:11:26]} 19. Bxf2
{[%clk 00:32:08]} {[%emt 00:02:46]} e4 {[%clk 00:35:15]} {[%emt 00:00:21]} 20.
Bd4 {[%clk 00:29:21]} {[%emt 00:03:45]} Qf4 {[%clk 00:35:15]} {[%emt 00:00:30]}
21. O-O {[%clk 00:21:18]} {[%emt 00:08:34]} exf3 {[%clk 00:34:18]} {[%emt
00:01:26]} 22. Bxg7 {[%clk 00:20:46]} {[%emt 00:01:02]} f2+ {[%clk 00:32:17]}
{[%emt 00:02:31]} 23. Kh1 {[%clk 00:20:39]} {[%emt 00:00:37]} Kxg7 {[%clk
00:32:02]} {[%emt 00:00:46]} 24. Qc2 {[%clk 00:17:15]} {[%emt 00:03:53]} Qg3
{[%clk 00:26:40]} {[%emt 00:05:52]} 25. Rad1 {[%clk 00:12:25]} {[%emt
00:05:20]} Bxg4 {[%clk 00:24:46]} {[%emt 00:02:23]} 26. Rd3 {[%clk 00:11:41]}
{[%emt 00:01:14]} Bf5 {[%clk 00:17:30]} {[%emt 00:07:47]} 27. Qc3+ {[%clk
00:10:04]} {[%emt 00:02:07]} Qe5 {[%clk 00:17:48]} {[%emt 00:00:11]} 28. Qxe5+
{[%clk 00:10:02]} {[%emt 00:00:33]} dxe5 {[%clk 00:18:12]} {[%emt 00:00:07]} 29.
Re3 {[%clk 00:10:08]} {[%emt 00:00:24]} Rae8 {[%clk 00:13:30]} {[%emt
00:05:11]} 30. Rxf2 {[%clk 00:10:08]} {[%emt 00:00:30]} Bxh3 {[%clk 00:13:35]}
{[%emt 00:00:26]} 31. Rd2 {[%clk 00:07:18]} {[%emt 00:03:20]} Bxg2+ {[%clk
00:08:49]} {[%emt 00:05:16]} 32. Kxg2 {[%clk 00:07:38]} {[%emt 00:00:09]} Rf6
{[%clk 00:08:25]} {[%emt 00:00:53]} 33. c5 {[%clk 00:06:52]} {[%emt 00:01:18]}
Kf7 {[%clk 00:07:20]} {[%emt 00:01:35]} 34. Rb3 {[%clk 00:06:08]} {[%emt
00:01:14]} b6 {[%clk 00:06:32]} {[%emt 00:01:18]} 35. d6 {[%clk 00:05:28]}
{[%emt 00:01:10]} cxd6 {[%clk 00:02:59]} {[%emt 00:04:03]} 36. cxb6 {[%clk
00:05:35]} {[%emt 00:00:23]} Rb8 {[%clk 00:02:40]} {[%emt 00:00:49]} 37. Rc2
{[%clk 00:04:51]} {[%emt 00:01:14]} Ke6 {[%clk 00:02:31]} {[%emt 00:00:39]} 38.
Rc6 {[%clk 00:04:06]} {[%emt 00:01:14]} Rf7 {[%clk 00:02:01]} {[%emt 00:01:00]}
39. Rd3 {[%clk 00:04:18]} {[%emt 00:00:18]} Rd7 {[%clk 00:02:08]} {[%emt
00:00:23]} 40. Rg3 {[%clk 00:04:28]} {[%emt 00:00:21]} g5 {[%clk 00:02:11]}
{[%emt 00:00:26]} 41. Rh3 {[%clk 00:04:38]} {[%emt 00:00:20]} Kd5 {[%clk
00:02:28]} {[%emt 00:00:13]} 42. Rc2 {[%clk 00:04:51]} {[%emt 00:00:17]} Rxb6
{[%clk 00:02:26]} {[%emt 00:00:32]} 43. Rxh6 {[%clk 00:05:10]} {[%emt
00:00:11]} Rdb7 {[%clk 00:01:42]} {[%emt 00:01:14]} 44. Rd2+ {[%clk 00:05:09]}
{[%emt 00:00:31]} Ke4 {[%clk 00:01:55]} {[%emt 00:00:17]} 45. b3 {[%clk
00:04:22]} {[%emt 00:01:17]} d5 {[%clk 00:02:05]} {[%emt 00:00:20]} 46. Rh5
{[%clk 00:04:18]} {[%emt 00:00:34]} a4 {[%clk 00:01:49]} {[%emt 00:00:47]} 47.
Rxg5 {[%clk 00:03:17]} {[%emt 00:01:29]} axb3 {[%clk 00:02:11]} {[%emt
00:00:09]} 48. axb3 {[%clk 00:03:01]} {[%emt 00:00:46]} Rxb3 {[%clk 00:02:39]}
{[%emt 00:00:02]} 49. Re2+ {[%clk 00:03:04]} {[%emt 00:00:27]} Re3 {[%clk
00:02:18]} {[%emt 00:00:52]} 50. Rg4+ {[%clk 00:02:35]} {[%emt 00:00:58]} Kd3
{[%clk 00:02:31]} {[%emt 00:00:17]} 51. Ra2 {[%clk 00:02:39]} {[%emt 00:00:27]}
Re2+ {[%clk 00:02:44]} {[%emt 00:00:17]} 52. Rxe2 {[%clk 00:02:37]} {[%emt
00:00:31]} Kxe2 {[%clk 00:03:12]} {[%emt 00:00:02]} 53. Rg5 {[%clk 00:02:15]}
{[%emt 00:00:52]} Re7 {[%clk 00:03:36]} {[%emt 00:00:06]} 54. Rg4 {[%clk
00:02:32]} {[%emt 00:00:13]} e4 {[%clk 00:03:48]} {[%emt 00:00:18]} 55. Kg3
{[%clk 00:02:22]} {[%emt 00:00:40]} d4 {[%clk 00:03:51]} {[%emt 00:00:27]} 56.
Rf4 {[%clk 00:02:39]} {[%emt 00:00:13]} Rg7+ {[%clk 00:03:46]} {[%emt
00:00:35]} 57. Kh3 {[%clk 00:02:53]} {[%emt 00:00:16]} Ke3 {[%clk 00:04:09]}
{[%emt 00:00:07]} 58. Rf1 {[%clk 00:03:02]} {[%emt 00:00:21]} d3 {[%clk
00:04:32]} {[%emt 00:00:07]} 59. Re1+ {[%clk 00:02:59]} {[%emt 00:00:33]} Kf3
{[%clk 00:04:58]} {[%emt 00:00:04]} 60. Rh1 {[%clk 00:02:53]} {[%emt 00:00:36]}
Rh7 {[%clk 00:05:20]} {[%emt 00:00:08]} 0-1

[Event "ONJK U25"]
[Site "Enschede, Netherlands"]
[Date "2022.08.13"]
[Round "7.6"]
[White "Andringa, Jibbe"]
[Black "Nies, Levi"]
[Result "0-1"]
[TimeControl "90min + 30sec/move"]
[WhiteElo "1000"]
[BlackElo "1570"]

1. d4 {[%clk 01:30:58]} {[%emt 00:00:01]} d5 {[%clk 01:30:55]} {[%emt
00:00:06]} 2. Bf4 {[%clk 01:31:23]} {[%emt 00:00:05]} Nf6 {[%clk 01:31:22]}
{[%emt 00:00:04]} 3. Nf3 {[%clk 01:31:42]} {[%emt 00:00:10]} c5 {[%clk
01:31:49]} {[%emt 00:00:03]} 4. e3 {[%clk 01:32:04]} {[%emt 00:00:08]} Nc6
{[%clk 01:32:15]} {[%emt 00:00:04]} 5. c3 {[%clk 01:32:24]} {[%emt 00:00:10]}
Bf5 {[%clk 01:32:30]} {[%emt 00:00:15]} 6. Nbd2 {[%clk 01:31:58]} {[%emt
00:00:56]} e6 {[%clk 01:32:45]} {[%emt 00:00:15]} 7. Bb5 {[%clk 01:30:19]}
{[%emt 00:02:09]} Qb6 {[%clk 01:31:40]} {[%emt 00:01:35]} 8. Qb3 {[%clk
01:29:16]} {[%emt 00:01:33]} Rc8 {[%clk 01:30:48]} {[%emt 00:01:22]} 9. Ne5
{[%clk 01:26:56]} {[%emt 00:02:50]} Be7 {[%clk 01:30:29]} {[%emt 00:00:50]} 10.
h3 {[%clk 01:26:24]} {[%emt 00:01:02]} h6 {[%clk 01:30:14]} {[%emt 00:00:45]}
11. O-O {[%emt 00:01:44]} O-O {[%clk 01:30:14]} {[%emt 00:00:26]} 12. Bxc6
{[%clk 01:21:21]} {[%emt 00:04:19]} bxc6 {[%clk 01:30:26]} {[%emt 00:00:21]} 13.
a4 {[%clk 01:20:47]} {[%emt 00:01:04]} cxd4 {[%clk 01:29:34]} {[%emt 00:01:22]}
14. exd4 {[%clk 01:19:00]} {[%emt 00:02:15]} c5 {[%clk 01:29:28]} {[%emt
00:00:38]} 15. a5 {[%clk 01:18:20]} {[%emt 00:01:11]} Qa6 {[%clk 01:27:43]}
{[%emt 00:02:15]} 16. Qa4 {[%clk 01:16:19]} {[%emt 00:02:29]} cxd4 {[%clk
01:27:03]} {[%emt 00:01:11]} 17. Qxd4 {[%clk 01:15:21]} {[%emt 00:01:27]} Ne4
{[%clk 01:26:25]} {[%emt 00:01:10]} 18. Nxe4 {[%clk 01:06:47]} {[%emt
00:09:02]} Bxe4 {[%clk 01:26:22]} {[%emt 00:00:35]} 19. Ng4 {[%clk 01:01:28]}
{[%emt 00:05:48]} Rc4 {[%clk 01:23:18]} {[%emt 00:03:35]} 20. Qd2 {[%clk
00:59:12]} {[%emt 00:02:45]} Rfc8 {[%clk 01:20:26]} {[%emt 00:03:23]} 21. Ne3
{[%clk 00:55:30]} {[%emt 00:04:12]} R4c5 {[%clk 01:20:44]} {[%emt 00:00:12]} 22.
Nc2 {[%clk 00:53:14]} {[%emt 00:02:45]} Bxc2 {[%clk 01:19:39]} {[%emt
00:01:35]} 23. Qxc2 {[%clk 00:52:43]} {[%emt 00:01:00]} Rxa5 {[%clk 01:19:56]}
{[%emt 00:00:15]} 24. Rxa5 {[%clk 00:52:22]} {[%emt 00:00:50]} Qxa5 {[%clk
01:20:25]} 25. Be3 {[%clk 00:51:26]} {[%emt 00:01:27]} Bf6 {[%clk 01:20:13]}
{[%emt 00:00:42]} 26. Rd1 {[%clk 00:50:49]} {[%emt 00:01:06]} Qa2 {[%clk
01:13:33]} {[%emt 00:07:12]} 27. Bd4 {[%clk 00:47:30]} {[%emt 00:03:48]} e5
{[%clk 01:12:19]} {[%emt 00:01:44]} 28. Be3 {[%clk 00:41:34]} {[%emt 00:06:26]}
d4 {[%clk 01:09:22]} {[%emt 00:03:28]} 29. f4 {[%clk 00:32:58]} {[%emt
00:09:06]} dxe3 {[%clk 01:06:10]} {[%emt 00:03:42]} 30. fxe5 {[%clk 00:33:10]}
{[%emt 00:00:17]} Bxe5 {[%clk 01:03:36]} {[%emt 00:03:05]} 31. Qf5 {[%clk
00:32:43]} {[%emt 00:00:57]} Qe6 {[%clk 01:04:03]} {[%emt 00:00:03]} 32. Qe4
{[%clk 00:31:36]} {[%emt 00:01:36]} Bh2+ {[%clk 01:04:31]} {[%emt 00:00:02]} 33.
Kxh2 {[%clk 00:31:39]} {[%emt 00:00:26]} Qxe4 {[%clk 01:05:01]} 0-1